bitfinex-derivatives/quotes_ETHF0:USTF0_20260226
["timestamp","ask_amount","ask_price","bid_price","bid_amount"]
[1772097080426,2.50431042,2061.3,2060.6,0.00558188]
[1772097080633,2.50431042,2061.1,2060.6,2.47006152]
[1772097087736,2.45839848,2061.6,2060.6,2.47006152]
[1772097087938,2.45839848,2061.4,2060.6,2.47006152]
[1772097089343,2.45839848,2061.2,2060.6,2.47006152]
[1772097090744,2.45839848,2061.6,2060.6,2.47006152]
[1772097091051,2.45839848,2061.4,2060.6,2.47006152]
[1772097094346,2.45839848,2061.6,2060.6,2.47006152]
[1772097094850,2.45839848,2061.4,2060.6,2.47006152]
[1772097099556,2.59150528,2061.9,2060.6,2.47006152]
[1772097099756,2.59150528,2061.7,2060.6,2.47006152]
[1772097104156,2.59150528,2061.7,2060.6,0.00558188]
[1772097104157,2.59150528,2061.5,2060.6,0.00558188]
[1772097104454,2.59150528,2061.3,2060.6,2.54421585]
[1772097106756,2.59150528,2062.1,2061.0,2.53863397]
[1772097106957,2.59150528,2062.3,2061.4,2.53863397]
[1772097107155,2.59150528,2062.3,2061.3,0.24255]
[1772097107156,2.59150528,2062.3,2061.6,2.53863397]
[1772097107355,2.59150528,2062.9,2061.6,2.53863397]
[1772097107558,2.59150528,2062.7,2061.6,2.53863397]
[1772097107958,2.59150528,2062.5,2061.6,2.53863397]
[1772097111055,2.59150528,2062.5,2061.4,2.53863397]
[1772097113963,4.04732481,2062.9,2061.8,2.53863397]
[1772097114267,2.59150528,2063.2,2062.0,2.53863397]
[1772097114471,2.59150528,2063.4,2062.0,2.53863397]
[1772097114768,2.59150528,2063.4,2062.2,2.53863397]
[1772097115067,2.59150528,2063.4,2062.2,2.5448651]
[1772097116563,2.59150528,2063.4,2062.4,2.52882508]
[1772097117260,2.59368235,2063.6,2062.6,2.52882508]
[1772097120372,2.61168235,2064.2,2063.0,2.77117508]
[1772097120571,2.61168235,2064.2,2063.2,2.52882508]
[1772097120869,2.61168235,2064.2,2063.3,8.88282508]
[1772097121065,2.61168235,2064.2,2063.4,2.52882508]
[1772097121261,2.61168235,2064.2,2063.3,2.52882508]
[1772097121462,2.61168235,2064.2,2062.9,2.52882508]
[1772097122363,2.59368235,2064.1,2062.9,2.52882508]
[1772097122569,2.59368235,2064.1,2063.0,2.52882508]
[1772097123170,2.59368235,2064.1,2063.2,2.52882508]
[1772097123975,0.018,2064.2,2063.4,2.52882508]
[1772097124173,2.61168235,2064.2,2063.4,2.52882508]
[1772097124379,2.61168235,2064.2,2063.2,2.52882508]
[1772097124568,2.61168235,2064.2,2063.1,3.9643]
[1772097124769,2.61168235,2064.2,2063.1,6.49312508]
[1772097126171,2.61168235,2064.2,2063.2,2.52882508]
[1772097126572,2.59368235,2064.2,2063.2,2.52882508]
[1772097133178,13.17108986,2065.0,2063.2,2.52882508]
[1772097133179,2.59368235,2065.0,2063.9,2.52882508]
[1772097133383,2.59368235,2065.0,2064.1,2.52882508]
[1772097133879,2.59368235,2065.0,2063.9,8.88512382]
[1772097134381,2.59368235,2065.0,2063.9,6.35629874]
[1772097134583,2.59368235,2065.0,2064.0,2.52882508]
[1772097136381,2.59368235,2064.8,2064.0,2.52882508]
[1772097139778,6.64100716,2065.5,2064.2,2.52882508]
[1772097139982,6.64100716,2065.5,2064.1,5.08230875]
[1772097139983,2.59368235,2065.4,2064.5,2.52882508]
[1772097140180,2.59368235,2065.8,2064.7,2.52882508]
[1772097140388,2.59368235,2065.6,2064.7,2.52882508]
[1772097140982,2.59368235,2066.0,2064.7,2.52882508]
[1772097141182,2.59368235,2065.8,2064.7,2.52882508]
[1772097141480,2.59368235,2065.8,2064.9,2.52882508]
[1772097141884,2.59368235,2065.8,2064.9,2.52523576]
[1772097144789,2.59368235,2066.7,2065.8,2.52882508]
[1772097145089,10.14698054,2067.4,2065.8,2.52882508]
[1772097145090,2.59368235,2067.3,2066.4,2.52882508]
[1772097145290,2.59368235,2067.7,2066.6,2.52882508]
[1772097145586,2.59368235,2067.7,2066.5,5.58155357]
[1772097145785,2.59368235,2067.5,2066.4,2.52882508]
[1772097145984,18.02054481,2067.8,2066.4,2.52882508]
[1772097145985,2.53611071,2067.3,2066.4,2.52882508]
[1772097146896,2.53611071,2067.3,2066.2,2.5414385]
[1772097147094,2.53611071,2067.7,2066.2,2.5414385]
[1772097147293,2.53611071,2067.9,2066.6,2.5414385]
[1772097147585,2.53611071,2067.9,2066.8,2.5414385]
[1772097148892,2.53611071,2068.9,2067.4,2.5414385]
[1772097149095,2.53611071,2068.7,2067.4,2.54507838]
[1772097149287,2.53611071,2068.5,2067.4,0.00363988]
[1772097149492,2.53611071,2068.1,2066.9,2.5414385]
[1772097149691,2.53611071,2067.9,2066.9,2.5414385]
[1772097150294,2.53611071,2067.9,2066.5,2.5414385]
[1772097150483,4.31067507,2067.2,2065.6,2.5414385]
[1772097150691,2.53611071,2067.0,2065.6,2.5414385]
[1772097151290,2.53611071,2067.0,2065.7,2.8878]
[1772097151490,2.53611071,2066.8,2065.7,2.8878]
[1772097151691,2.53611071,2066.8,2065.7,2.89177501]
[1772097153792,2.53611071,2066.8,2065.8,2.5414385]
[1772097154993,2.53611071,2066.9,2065.8,2.5414385]
[1772097156288,0.00349308,2067.0,2065.9,2.49616804]
[1772097156492,0.00349308,2067.0,2066.1,2.49616804]
[1772097156700,2.54452514,2067.6,2066.5,2.49616804]
[1772097157598,2.55027616,2067.6,2066.5,2.49616804]
[1772097158197,2.54452514,2067.3,2065.8,2.49616804]
[1772097159693,2.54452514,2066.8,2065.7,2.89177501]
[1772097159991,2.54452514,2066.7,2065.8,2.49616804]
[1772097160994,2.54452514,2067.2,2066.3,2.49616804]
[1772097162198,0.00575102,2067.6,2066.3,2.49616804]
[1772097162394,2.55027616,2067.6,2066.6,2.49616804]
[1772097170105,2.54452514,2067.4,2066.6,2.49616804]
[1772097171401,0.00575102,2067.6,2066.9,2.49616804]
[1772097171608,2.54452514,2068.2,2066.9,2.73805804]
[1772097171803,8.91670616,2068.1,2066.9,2.73805804]
[1772097172000,2.54452514,2068.1,2066.9,2.73805804]
[1772097172201,2.54452514,2068.4,2067.3,2.49616804]
[1772097172608,2.54452514,2068.4,2067.3,2.50090836]
[1772097173502,2.54452514,2068.2,2067.3,2.50090836]
[1772097174100,2.54452514,2068.5,2067.3,2.50090836]
[1772097174303,2.54452514,2068.3,2067.3,2.50090836]
[1772097180209,2.43193043,2068.1,2067.3,0.00474032]
[1772097180712,2.43193043,2068.1,2066.9,2.52832847]
[1772097181015,2.43193043,2067.8,2066.7,2.52832847]
[1772097181214,2.43193043,2067.6,2066.7,2.52832847]
[1772097181409,2.43193043,2067.4,2066.7,2.52832847]
[1772097181609,2.43623776,2067.4,2066.7,2.53402245]
[1772097182017,2.43623776,2067.4,2066.7,0.00569398]
[1772097182611,2.43623776,2067.4,2066.2,6.338]
[1772097182612,2.43623776,2067.4,2066.3,2.52832847]
[1772097182816,2.43193043,2067.2,2066.3,2.52832847]
[1772097183716,2.43193043,2067.2,2066.3,2.53342738]
[1772097184012,2.43623776,2067.4,2066.3,2.53342738]
[1772097184615,2.43623776,2067.4,2066.5,2.52832847]
[1772097186515,2.43193043,2067.2,2066.4,3.9682]
[1772097186711,2.43193043,2067.0,2066.5,2.52832847]
[1772097186915,2.43193043,2067.3,2066.5,2.52832847]
[1772097187114,2.43193043,2067.1,2066.5,2.52832847]
[1772097187713,2.43193043,2067.3,2066.5,2.52832847]
[1772097189612,0.00430733,2067.4,2066.5,2.52832847]
[1772097189811,2.43193043,2068.0,2066.7,2.52832847]
[1772097190018,2.43193043,2068.0,2066.9,2.52832847]
[1772097190213,2.43193043,2067.8,2066.9,2.52832847]
[1772097190723,2.43725359,2067.8,2066.9,2.52832847]
[1772097191316,0.00532316,2067.8,2066.9,2.52832847]
[1772097191522,0.00532316,2067.8,2067.1,2.52832847]
[1772097191717,3.99666101,2068.3,2067.1,2.52832847]
[1772097192020,2.43193043,2068.3,2067.3,2.52832847]
[1772097192220,2.43193043,2068.3,2067.5,2.52832847]
[1772097192823,2.43273424,2068.3,2067.5,2.52832847]
[1772097193016,2.43273424,2068.3,2067.3,2.52832847]
[1772097193224,2.43193043,2068.1,2067.1,2.52832847]
[1772097193515,2.43193043,2067.9,2067.1,2.52832847]
[1772097193717,2.43193043,2067.9,2066.8,2.52832847]
[1772097193918,2.43193043,2067.7,2066.8,2.52832847]
[1772097194118,0.00080381,2068.3,2066.8,2.52832847]
[1772097194119,9.99165253,2069.1,2067.6,0.24181]
[1772097194324,2.52665442,2068.9,2067.7,6.338]
[1772097194520,2.52665442,2068.9,2067.6,6.338]
[1772097194725,2.55207288,2068.7,2067.7,0.5879164]
[1772097194922,2.55207288,2068.7,2067.8,0.5879164]
[1772097195121,2.55207288,2068.5,2067.9,0.5879164]
[1772097195325,2.55207288,2068.5,2068.0,0.5879164]
[1772097195527,2.55207288,2068.5,2068.1,0.5879164]
[1772097195827,2.55207288,2068.5,2068.2,0.5879164]
[1772097196127,2.55207288,2068.5,2067.8,1.17113902]
[1772097196326,12.81956375,2068.4,2067.8,1.17113902]
[1772097196524,2.43193043,2068.4,2067.8,1.17113902]
[1772097197324,2.43193043,2068.7,2067.8,1.17113902]
[1772097197526,2.43193043,2068.5,2067.8,1.17113902]
[1772097198229,10.38763332,2068.4,2067.8,1.17113902]
[1772097198728,12.81956375,2068.4,2067.8,1.17113902]
[1772097200430,2.43193043,2068.3,2067.8,1.17113902]
[1772097200726,2.43193043,2068.1,2067.3,2.06952505]
[1772097200928,2.43193043,2068.1,2066.9,2.06422536]
[1772097201122,2.43193043,2067.9,2066.9,2.06422536]
[1772097201629,2.43193043,2067.7,2066.9,2.06781907]
[1772097202425,2.43193043,2067.5,2066.9,0.00359371]
[1772097203330,2.43193043,2067.3,2066.5,1.97629109]
[1772097204133,2.43193043,2067.3,2066.5,1.98152221]
[1772097204532,2.43193043,2067.1,2066.5,1.98152221]
[1772097204732,2.43193043,2067.1,2066.5,0.00523112]
[1772097205134,12.81956375,2067.0,2066.5,1.96793301]
[1772097205332,12.81956375,2067.0,2066.4,4.72710098]
[1772097205333,2.43193043,2067.0,2066.4,4.72710098]
[1772097205529,2.43193043,2066.8,2066.4,2.7656]
[1772097206029,3.07894314,2066.6,2066.4,2.7656]
[1772097206227,2.76447217,2066.6,2066.4,0.83028012]
[1772097206536,3.07894314,2066.5,2065.9,2.28976723]
[1772097207225,3.07894314,2066.3,2065.9,2.28976723]
[1772097207427,3.07894314,2066.4,2065.6,6.338]
[1772097207632,13.46657646,2066.2,2065.7,2.28369394]
[1772097208130,13.46657646,2066.2,2065.8,3.07417057]
[1772097208330,13.46657646,2066.2,2065.9,0.58028502]
[1772097208523,13.46657646,2066.2,2066.0,0.58028502]
[1772097208724,13.46657646,2066.2,2066.1,0.58028502]
[1772097208924,3.07894314,2066.2,2066.1,0.38703151]
[1772097209233,3.07894314,2066.2,2065.6,8.87729007]
[1772097209433,13.07954495,2066.1,2065.6,8.87587038]
[1772097209635,3.07894314,2066.1,2065.6,8.87587038]
[1772097209932,3.07894314,2066.1,2065.7,2.53908928]
[1772097210434,3.07894314,2066.3,2065.7,2.53908928]
[1772097210634,3.07894314,2066.2,2065.6,0.00628321]
[1772097210832,3.07894314,2066.2,2065.2,2.49565843]
[1772097211032,3.07894314,2066.0,2065.2,2.49565843]
[1772097211434,3.07894314,2065.8,2065.2,2.49565843]
[1772097212036,3.07894314,2065.8,2065.2,0.00477857]
[1772097212633,3.07894314,2066.0,2064.7,2.53668715]
[1772097213035,10.00060181,2065.9,2064.9,2.53668715]
[1772097213632,10.00060181,2065.9,2064.9,2.54090512]
[1772097213833,13.07954495,2065.9,2064.9,2.54090512]
[1772097214839,0.00572774,2066.4,2065.3,2.56380936]
[1772097215038,0.00572774,2066.4,2065.5,2.56380936]
[1772097217039,3.32062354,2066.4,2065.5,2.56380936]
[1772097217538,0.00572774,2066.4,2065.5,2.56380936]
[1772097217940,3.32062354,2066.4,2065.5,2.56380936]
[1772097221237,3.32062354,2066.4,2065.4,6.34]
[1772097221238,3.32062354,2066.4,2065.7,3.30847178]
[1772097221539,3.32062354,2066.4,2065.8,0.5700216]
[1772097221839,3.32062354,2066.4,2065.7,3.30847178]
[1772097222036,3.32062354,2066.4,2065.8,0.57009626]
[1772097222237,3.32062354,2066.4,2065.7,3.30847178]
[1772097222434,0.00572774,2066.4,2066.0,3.295796]
[1772097223433,0.00572774,2066.4,2066.1,3.85550062]
[1772097223638,0.00572774,2066.4,2066.1,3.28534362]
[1772097224839,3.3148958,2066.6,2066.1,3.28534362]
[1772097225231,3.3148958,2066.6,2065.5,6.341]
[1772097225232,3.3148958,2066.6,2066.2,3.83660257]
[1772097225432,3.3148958,2066.6,2066.2,3.26646891]
[1772097225842,3.31960107,2066.6,2066.2,3.26646891]
[1772097226644,3.31960107,2066.6,2065.6,3.24776084]
[1772097226842,3.31960107,2066.6,2065.8,3.24776084]
[1772097227042,3.31960107,2066.6,2066.0,3.24776084]
[1772097227341,3.31960107,2066.6,2066.1,3.81803767]
[1772097227535,3.31960107,2066.6,2066.2,3.81607589]
[1772097227740,3.31960107,2066.6,2066.3,0.57027683]
[1772097227938,3.31960107,2066.6,2065.6,3.23727587]
[1772097228143,3.31960107,2066.6,2065.8,3.23727587]
[1772097228338,3.31960107,2066.6,2065.9,3.80671525]
[1772097228543,3.31960107,2066.6,2066.0,0.5705861]
[1772097228742,3.31960107,2066.6,2066.1,0.5705861]
[1772097229044,3.31960107,2066.6,2066.2,0.5705861]
[1772097229244,3.31960107,2066.6,2066.3,0.5705861]
[1772097229438,3.31960107,2066.6,2065.9,3.23612915]
[1772097231045,3.31960107,2066.6,2065.7,3.21671256]
[1772097231745,3.31960107,2066.6,2066.0,1.0]
[1772097232441,3.3148958,2066.4,2066.0,1.0]
[1772097232945,3.3148958,2066.4,2065.5,3.2038248]
[1772097233947,3.3148958,2066.2,2065.0,3.26326259]
[1772097239452,3.39915086,2066.0,2065.1,3.20708809]
[1772097239654,3.39915086,2066.0,2065.2,3.19775951]
[1772097241254,3.39915086,2066.4,2065.2,3.19775951]
[1772097241455,3.39915086,2066.2,2065.4,3.1534276]
[1772097241646,3.39915086,2066.0,2065.5,3.71067291]
[1772097241849,3.39915086,2066.0,2065.6,0.55724531]
[1772097242151,3.39915086,2066.0,2065.7,0.55724531]
[1772097242349,3.39915086,2066.0,2065.8,0.55724531]
[1772097242545,3.39915086,2066.0,2065.9,0.55724531]
[1772097242754,3.39915086,2066.0,2065.9,0.40410653]
[1772097242956,3.39915086,2066.0,2065.5,3.1534276]
[1772097243358,3.39915086,2066.0,2065.2,3.3759082]
[1772097247457,3.40385613,2066.6,2065.7,3.3759082]
[1772097247654,3.40385613,2066.6,2065.8,3.3759082]
[1772097249452,0.00470527,2066.6,2065.8,3.3759082]
[1772097253358,3.40385613,2066.6,2065.8,3.3759082]
[1772097254152,0.00470527,2066.6,2065.8,3.3759082]
[1772097254961,3.40385613,2066.6,2066.0,3.2992015]
[1772097255159,3.40385613,2066.6,2066.1,3.84612167]
[1772097255358,3.40385613,2066.6,2066.2,0.54692017]
[1772097255563,3.40385613,2066.6,2066.3,0.54692017]
[1772097255866,3.40385613,2066.6,2066.4,0.54692017]
[1772097256063,3.40385613,2066.6,2065.8,3.29388772]
[1772097257067,3.40385613,2066.6,2065.8,3.29733897]
[1772097258854,3.40385613,2066.6,2065.8,0.00345125]
[1772097259055,3.40385613,2066.6,2065.8,3.24234362]
[1772097263465,9.61233957,2066.5,2065.8,3.24234362]
[1772097263664,3.39915086,2066.5,2065.8,3.24234362]
[1772097264166,0.00470527,2066.6,2065.8,3.24234362]
[1772097265666,3.40385613,2066.6,2065.8,3.24234362]
[1772097265861,3.40385613,2066.6,2065.8,0.00345125]
[1772097268067,3.40385613,2066.6,2065.9,0.54421772]
[1772097268369,3.2926734,2066.4,2066.0,0.54421772]
[1772097268567,3.2926734,2066.4,2066.1,0.54421772]
[1772097268769,3.2926734,2066.4,2065.8,0.00345125]
[1772097268975,3.2926734,2066.4,2065.9,0.54427102]
[1772097269168,3.2926734,2066.4,2065.8,0.00345125]
[1772097269369,3.2926734,2066.2,2065.2,9.65101438]
[1772097269569,3.2926734,2066.2,2065.3,3.30901438]
[1772097270370,3.2926734,2066.2,2065.3,3.31299929]
[1772097270680,32.454,2069.4,2065.4,5.3085595]
[1772097270973,30.47436461,2073.6,2065.4,5.3085595]
[1772097270974,3.44320191,2073.7,2071.5,5.93754]
[1772097271172,3.69320191,2073.4,2072.6,1.77124233]
[1772097271371,2.95873751,2073.2,2072.9,7.32415846]
[1772097271669,0.00420744,2073.2,2073.0,7.60724165]
[1772097271871,72.20928933,2073.2,2072.9,3.30901438]
[1772097272068,3.2926734,2073.8,2073.0,13.04882642]
[1772097272375,72.1369555,2074.1,2073.5,3.86384624]
[1772097272575,3.2926734,2074.0,2073.7,3.86384624]
[1772097272775,3.2926734,2074.0,2073.1,5.14946455]
[1772097273075,3.2926734,2073.8,2073.2,0.00410771]
[1772097273268,3.2926734,2073.8,2072.4,3.30901438]
[1772097273464,3.2926734,2073.6,2072.5,3.30901438]
[1772097274073,3.2926734,2073.6,2072.6,6.337]
[1772097274372,3.2926734,2073.6,2072.6,9.65158473]
[1772097274570,3.2926734,2073.4,2071.6,3.30901438]
[1772097274770,3.2926734,2073.2,2071.6,3.30901438]
[1772097275372,17.08271592,2073.0,2071.6,3.30901438]
[1772097275572,17.08271592,2073.0,2071.8,16.48665946]
[1772097275775,17.08271592,2072.8,2071.8,22.82790032]
[1772097275975,17.08271592,2072.8,2071.8,0.00624086]
[1772097276172,17.08271592,2072.6,2071.8,0.00624086]
[1772097276377,17.08271592,2072.6,2071.0,22.82065946]
[1772097276678,17.08271592,2072.4,2071.0,6.334]
[1772097277067,17.08271592,2072.2,2071.0,6.333]
[1772097277270,17.08271592,2072.1,2071.0,6.333]
[1772097277471,17.08271592,2072.1,2071.0,6.33664595]
[1772097277472,17.08894586,2072.1,2071.0,6.33664595]
[1772097277875,17.08271592,2071.9,2071.0,0.00364595]
[1772097278275,17.08271592,2071.7,2070.6,22.81965946]
[1772097279279,17.08271592,2071.7,2070.6,22.8241858]
[1772097280674,17.08271592,2071.5,2070.6,0.00452634]
[1772097281179,17.08271592,2071.3,2070.0,16.48665946]
[1772097281376,17.08271592,2071.1,2070.0,22.81765946]
[1772097281680,17.08271592,2071.1,2069.8,16.48665946]
[1772097281880,17.08271592,2070.9,2069.8,16.48665946]
[1772097282080,17.08271592,2070.7,2069.8,16.48665946]
[1772097282283,17.08271592,2070.7,2069.8,0.00521491]
[1772097282575,72.11739063,2070.6,2069.8,0.00521491]
[1772097282782,17.08271592,2070.5,2069.8,0.00521491]
[1772097282973,17.08271592,2070.3,2069.3,16.48665946]
[1772097283378,17.08271592,2070.3,2069.4,24.09544706]
[1772097283579,89.20010655,2070.2,2069.5,7.6087876]
[1772097283780,17.08271592,2070.2,2069.5,7.6087876]
[1772097283980,17.08271592,2070.2,2069.5,7.61502229]
[1772097284181,17.08271592,2070.2,2069.6,7.60932683]
[1772097284482,17.08271592,2070.2,2069.5,0.00623469]
[1772097284683,17.08271592,2070.2,2069.6,7.60932799]
[1772097284883,17.08271592,2070.2,2069.5,0.00623469]
[1772097285083,17.08271592,2070.2,2069.6,7.60928487]
[1772097285382,17.08271592,2070.2,2069.5,0.00623469]
[1772097285584,16.76868216,2070.2,2069.6,11.44527951]
[1772097285777,16.76868216,2070.2,2069.6,3.836]
[1772097286178,17.08271592,2070.0,2069.6,3.836]
[1772097286480,16.61166003,2070.0,2069.6,3.836]
[1772097286677,0.00342504,2070.6,2069.7,13.9068655]
[1772097286885,51.65774384,2070.5,2069.8,13.93936256]
[1772097287080,51.65774384,2070.5,2069.9,7.60936256]
[1772097287279,17.47382498,2070.4,2070.0,7.60936256]
[1772097287584,17.47382498,2070.4,2070.1,7.60936256]
[1772097287886,17.47382498,2070.4,2070.2,7.60936256]
[1772097288083,17.47382498,2070.4,2069.8,6.33]
[1772097288279,17.47382498,2070.4,2069.9,7.60719611]
[1772097288582,17.47382498,2070.4,2070.0,7.60719611]
[1772097288785,17.47382498,2070.4,2070.1,7.60719611]
[1772097289081,17.47382498,2070.4,2070.2,7.60719611]
[1772097289281,17.47382498,2070.4,2070.3,7.45510133]
[1772097289478,34.18391886,2070.5,2070.3,7.45510133]
[1772097289677,34.18391886,2070.5,2069.8,8.53094106]
[1772097290678,17.60639355,2070.4,2069.8,6.33]
[1772097290887,17.60639355,2070.4,2069.6,6.33]
[1772097291186,17.60639355,2070.2,2069.6,6.33]
[1772097291675,13.77039355,2070.2,2069.6,6.33]
[1772097292678,13.77039355,2070.2,2069.5,0.00623469]
[1772097292885,51.26663478,2070.1,2069.6,0.75480091]
[1772097293188,17.08271592,2070.3,2069.7,7.08480091]
[1772097293479,17.08271592,2070.3,2069.8,0.75480091]
[1772097293684,17.08271592,2070.1,2069.5,0.00623469]
[1772097293883,17.08271592,2070.0,2069.5,0.00623469]
[1772097294485,17.08271592,2069.8,2069.5,0.00623469]
[1772097295087,34.18391886,2069.9,2069.5,0.00623469]
[1772097295285,51.26663478,2069.9,2069.5,0.00623469]
[1772097295783,34.18391886,2069.9,2069.5,0.00623469]
[1772097296387,17.08271592,2070.1,2069.5,0.00623469]
[1772097296583,18.39483076,2069.9,2069.1,15.98837602]
[1772097296790,18.39483076,2069.8,2069.1,6.33]
[1772097297185,17.6096847,2069.7,2069.1,15.98837602]
[1772097297693,17.6096847,2069.7,2069.1,15.99287525]
[1772097298193,17.6096847,2069.7,2069.3,9.65837602]
[1772097298388,17.6096847,2069.7,2069.2,9.65837602]
[1772097298889,16.98156877,2069.7,2069.2,9.65837602]
[1772097299093,6.83508218,2069.7,2069.4,9.65837602]
[1772097299288,52.10146584,2069.6,2069.3,9.65837602]
[1772097299689,18.39483076,2069.5,2069.3,9.65837602]
[1772097299889,18.39483076,2069.5,2069.1,0.00449923]
[1772097300091,39.41827348,2069.4,2069.1,0.00449923]
[1772097300295,16.39362102,2069.4,2068.7,17.3845675]
[1772097300493,21.02344272,2069.3,2068.7,17.3845675]
[1772097300688,18.3982558,2070.6,2069.3,17.3845675]
[1772097300884,18.3982558,2070.6,2069.5,17.3845675]
[1772097301294,18.3982558,2070.6,2069.4,6.33]
[1772097301295,18.39483076,2070.5,2069.6,7.60814295]
[1772097301490,18.39483076,2070.3,2069.7,7.60814295]
[1772097301684,18.39483076,2070.3,2069.8,6.71064218]
[1772097301993,13.32215306,2070.3,2069.5,0.00602262]
[1772097302384,13.32215306,2070.3,2069.5,17.39059012]
[1772097303289,5.71258943,2070.3,2069.5,0.00602262]
[1772097304301,5.71258943,2070.3,2069.1,17.3845675]
[1772097304496,5.71258943,2070.3,2068.9,17.3845675]
[1772097305392,5.71258943,2070.3,2068.9,17.39037066]
[1772097305697,5.93932,2070.9,2068.9,17.39037066]
[1772097305698,18.39483076,2071.3,2069.8,17.6261175]
[1772097305893,18.39483076,2071.3,2070.0,17.3845675]
[1772097306199,9.13,2071.4,2070.2,17.3845675]
[1772097306200,18.39483076,2071.1,2070.2,17.3845675]
[1772097306399,17.92395436,2071.1,2070.4,17.3845675]
[1772097306690,17.92395436,2071.1,2070.5,0.75491774]
[1772097306691,27.09721976,2071.1,2070.5,0.75491774]
[1772097306896,18.39483076,2071.0,2070.4,0.0053029]
[1772097307093,18.39483076,2071.0,2070.4,17.3898704]
[1772097307296,0.0062654,2071.1,2070.6,17.3845675]
[1772097307596,18.40109616,2071.1,2070.6,17.3845675]
[1772097307798,59.20109616,2071.1,2070.5,6.331]
[1772097308698,59.20109616,2071.1,2070.5,23.7155675]
[1772097309396,59.19066196,2071.1,2070.5,6.331]
[1772097309590,18.39483076,2071.0,2070.5,6.331]
[1772097310199,18.39483076,2071.0,2070.4,0.0053029]
[1772097310398,18.40065691,2071.0,2070.4,0.0053029]
[1772097310695,18.40065691,2071.0,2070.4,9.87015547]
[1772097310900,18.40065691,2071.0,2070.4,0.0053029]
[1772097311498,18.40065691,2071.0,2069.9,36.04480214]
[1772097311699,18.40065691,2071.0,2069.9,23.7145675]
[1772097311993,18.40065691,2071.0,2069.7,23.7145675]
[1772097312197,18.40065691,2071.0,2069.2,17.3845675]
[1772097312198,13.75036452,2070.8,2069.2,17.3845675]
[1772097312398,13.70270862,2070.6,2069.2,17.38858922]
[1772097312798,13.70270862,2070.6,2069.3,17.3845675]
[1772097312998,13.70270862,2070.6,2069.2,0.00402172]
[1772097313200,14.35531604,2070.4,2069.2,0.00402172]
[1772097313396,14.24015937,2070.2,2068.8,23.7145675]
[1772097313601,14.24015937,2070.2,2069.2,7.41476961]
[1772097313802,14.24015937,2070.2,2069.3,7.09382668]
[1772097313998,14.24015937,2070.2,2069.4,7.09382668]
[1772097314203,14.24015937,2070.2,2069.5,7.09382668]
[1772097314504,14.24015937,2070.2,2069.6,7.09382668]
[1772097314704,14.24015937,2070.2,2069.7,7.09083077]
[1772097315000,14.24015937,2070.2,2069.3,14.5135968]
[1772097315501,14.24015937,2070.2,2069.1,7.41476961]
[1772097315708,14.24015937,2070.2,2069.2,7.41476961]
[1772097317401,14.24015937,2070.2,2069.4,19.33384215]
[1772097317595,14.24015937,2070.2,2069.4,26.74861176]
[1772097318199,14.24015937,2070.2,2069.5,19.33384215]
[1772097318406,14.24015937,2070.2,2069.8,18.55542881]
[1772097318407,3.06535559,2070.2,2069.8,18.55542881]
[1772097318698,7.33704368,2070.4,2069.8,18.55542881]
[1772097318699,9.27470059,2070.3,2069.9,6.331]
[1772097318902,9.27470059,2070.3,2070.0,0.57587017]
[1772097319096,9.27470059,2070.3,2069.9,6.331]
[1772097319301,40.8,2070.5,2070.0,18.93762936]
[1772097320205,50.187,2070.5,2070.0,18.93762936]
[1772097320504,9.387,2070.5,2070.0,18.93762936]
[1772097321105,9.40282615,2071.0,2070.2,19.03952908]
[1772097321304,9.40282615,2071.0,2070.3,19.03952908]
[1772097321504,40.8,2070.9,2070.3,19.03952908]
[1772097322303,9.40282615,2071.0,2070.3,19.03952908]
[1772097322604,17.81847654,2071.0,2070.3,19.03952908]
[1772097322903,8.41565039,2070.8,2070.1,19.03386926]
[1772097323903,40.8,2070.9,2070.1,19.03386926]
[1772097324099,8.36451513,2070.8,2070.0,6.331]
[1772097324307,8.36451513,2070.6,2069.9,19.02928959]
[1772097324702,9.424,2070.7,2069.9,19.02928959]
[1772097324902,17.9550697,2070.7,2069.9,19.02928959]
[1772097325104,8.5310697,2070.6,2069.8,18.91566798]
[1772097325604,8.5310697,2070.6,2069.5,7.41476961]
[1772097325798,8.5310697,2070.6,2069.5,13.74476961]
[1772097326002,8.5310697,2070.6,2069.5,21.48423271]
[1772097326203,8.5310697,2070.6,2069.5,27.81423271]
[1772097326603,8.5310697,2070.6,2069.6,6.62481445]
[1772097326803,8.5310697,2070.6,2069.7,6.62481445]
[1772097327005,8.5310697,2070.6,2069.8,6.62481445]
[1772097327213,8.5310697,2070.6,2069.9,6.62481445]
[1772097327410,8.5310697,2070.6,2070.0,6.62481445]
[1772097327709,8.5310697,2070.6,2069.5,27.81423271]
[1772097327910,8.5310697,2070.6,2069.6,6.62618438]
[1772097328108,8.5310697,2070.6,2069.7,6.62618438]
[1772097328309,8.5310697,2070.6,2069.8,6.62618438]
[1772097328510,8.5310697,2070.6,2069.9,6.62618438]
[1772097328805,8.5310697,2070.6,2070.0,6.62618438]
[1772097329011,8.35850942,2070.8,2070.1,28.10871358]
[1772097329213,8.35850942,2070.8,2069.9,27.81423271]
[1772097330208,8.35850942,2070.8,2069.9,21.48423271]
[1772097330803,8.35850942,2070.8,2069.5,22.35319886]
[1772097331010,8.35850942,2070.8,2069.1,9.18533135]
[1772097331011,8.35850942,2070.8,2069.6,23.03566803]
[1772097331313,8.35850942,2070.8,2069.7,23.03566803]
[1772097331507,8.35850942,2070.8,2069.8,23.06691931]
[1772097331709,8.35850942,2070.8,2069.9,0.68246917]
[1772097331908,8.35850942,2070.8,2070.0,0.68246917]
[1772097332216,1.66502969,2070.8,2070.1,23.06691931]
[1772097332414,1.66502969,2070.8,2070.2,0.68246917]
[1772097332713,1.66502969,2070.8,2070.3,0.68246917]
[1772097332913,1.66502969,2070.8,2069.9,22.40887555]
[1772097334011,9.471,2070.9,2070.0,29.90842266]
[1772097334908,9.471,2070.9,2070.1,6.331]
[1772097335115,40.8,2070.7,2070.1,6.331]
[1772097335711,40.8,2070.7,2069.6,3.94533716]
[1772097335712,40.8,2070.7,2069.6,23.73122204]
[1772097335912,9.49,2070.6,2069.6,23.73122204]
[1772097337908,9.49,2070.6,2069.6,27.6765592]
[1772097338112,9.498,2070.5,2069.8,23.73159777]
[1772097338313,9.498,2070.5,2069.9,23.73159777]
[1772097344318,9.498,2070.5,2069.7,23.46207747]
[1772097344815,9.498,2070.5,2069.8,0.67794963]
[1772097345020,9.498,2070.5,2069.9,0.67794963]
[1772097345218,9.498,2070.5,2069.5,23.46193251]
[1772097345621,9.498,2070.5,2069.3,23.45585634]
[1772097345822,9.73948,2070.5,2069.3,23.45585634]
[1772097346017,5.0626519,2070.4,2069.3,23.45585634]
[1772097347724,6.18257,2070.3,2069.1,0.00606238]
[1772097348020,0.24152,2070.1,2069.1,0.00606238]
[1772097348214,40.8,2070.0,2069.1,0.00606238]
[1772097348416,9.564,2069.9,2069.1,0.00606238]
[1772097350321,5.43395176,2069.8,2069.1,0.00606238]
[1772097350518,5.43395176,2069.8,2068.7,23.28061373]
[1772097351525,9.611,2069.7,2068.7,23.28641521]